fUST/lending_fUST_20250725
["ID","MTS","AMOUNT","RATE_DAILY","PERIOD"]
[374685297,1753413044466,-1123.15,0.00018761,2]
[374685298,1753413044477,-460.0,0.00018761,2]
[374685299,1753413044489,-460.0,0.00018761,2]
[374685300,1753413044500,-460.0,0.00018762,2]
[374685301,1753413044512,-460.0,0.00018762,2]
[374685302,1753413044523,-460.0,0.00018762,2]
[374685303,1753413044534,-460.0,0.00018762,2]
[374685304,1753413044545,-460.0,0.00018762,2]
[374685305,1753413044558,-460.0,0.00018762,2]
[374685306,1753413044568,-460.0,0.00018762,2]
[374685307,1753413044581,-460.0,0.00018762,2]
[374685308,1753413044591,-460.0,0.00018762,2]
[374685309,1753413044603,-460.0,0.00018762,2]
[374685310,1753413044614,-811.88,0.00018762,2]
[374685311,1753413044628,-460.0,0.00018762,2]
[374685312,1753413044640,-485.53,0.00018762,2]
[374685313,1753413044653,-682.55,0.00018762,2]
[374685314,1753413044664,-460.0,0.00018762,2]
[374685315,1753413044675,-413.64970622,0.00018762,2]
[374685316,1753413044687,-460.0,0.00018762,2]
[374685317,1753413044699,-1105.84,0.00018762,2]
[374685318,1753413044711,-460.0,0.00018762,2]
[374685319,1753413044723,-460.0,0.00018762,2]
[374685320,1753413044734,-460.0,0.00018762,2]
[374685321,1753413044746,-1999.76,0.00018762,2]
[374685322,1753413044757,-460.0,0.00018762,2]
[374685323,1753413044768,-460.0,0.00018762,2]
[374685324,1753413044779,-460.0,0.00018762,2]
[374685325,1753413044789,-460.0,0.00018762,2]
[374685326,1753413044800,-775.94,0.00018762,2]
[374685327,1753413044811,-572.18,0.00018762,2]
[374685328,1753413044821,-460.0,0.00018762,2]
[374685329,1753413044833,-460.0,0.00018762,2]
[374685330,1753413044845,-1380.02,0.00018762,2]
[374685331,1753413044857,-508.82,0.00018762,2]
[374685332,1753413044869,-460.0,0.00018762,2]
[374685333,1753413044880,-593.98,0.00018762,2]
[374685334,1753413044891,-1059.98,0.00018762,2]
[374685335,1753413044901,-572.37,0.00018762,2]
[374685336,1753413044911,-499.64,0.00018762,2]
[374685337,1753413044923,-1304.1,0.00018762,2]
[374685338,1753413044933,-460.0,0.00018762,2]
[374685339,1753413044945,-838.96,0.00018762,2]
[374685340,1753413044957,-631.7,0.00018762,2]
[374685341,1753413044968,-1408.64,0.00018762,2]
[374685342,1753413044979,-460.0,0.00018762,2]
[374685343,1753413044990,-2590.99,0.00018762,2]
[374685344,1753413045001,-460.0,0.00018762,2]
[374685345,1753413045011,-460.0,0.00018762,2]
[374685346,1753413045023,-460.0,0.00018762,2]
[374685347,1753413045033,-460.0,0.00018762,2]
[374685348,1753413045044,-460.0,0.00018762,2]
[374685349,1753413045056,-365.47651421,0.00018805,2]
[374685350,1753413045067,-566.80761336,0.00018871,2]
[374685351,1753413045078,-199.62723539,0.00018872,2]
[374685352,1753413045089,-151.0,0.00018872,2]
[374685353,1753413045101,-1022.0,0.00018872,2]
[374685354,1753413045113,-151.0,0.00018872,2]
[374685355,1753413045126,-151.0,0.00018872,2]
[374685356,1753413045137,-901.0,0.00018872,2]
[374685357,1753413045147,-500.0,0.00018872,2]
[374685358,1753413045158,-152.15360701,0.00018872,2]
[374685359,1753413045172,-262.84809365,0.00018872,2]
[374685360,1753413045182,-151.0,0.00018872,2]
[374685361,1753413045193,-168.0,0.00018872,2]
[374685362,1753413045205,-2768.96608264,0.000189,2]
[374685363,1753413045216,-3563.69170383,0.000189,2]
[374685364,1753413045227,-168.0,0.0001891,2]
[374685365,1753413045237,-1500.0,0.00018968,2]
[374685366,1753413045248,-1500.0,0.00018968,2]
[374685367,1753413045258,-300.0,0.00018984,2]
[374685368,1753413045269,-1305.0,0.00018985,2]
[374685369,1753413045280,-460.0,0.00019035,2]
[374685370,1753413045291,-460.0,0.00019035,2]
[374685371,1753413045301,-460.0,0.00019035,2]
[374685372,1753413045312,-493.12458082,0.00019035,2]
[374685373,1753413045322,-460.0,0.00019035,2]
[374685374,1753413045333,-460.0,0.00019035,2]
[374685375,1753413045345,-534.09,0.00019035,2]
[374685376,1753413045355,-3269.13,0.00019035,2]
[374685377,1753413045366,-460.0,0.00019035,2]
[374685378,1753413045377,-2004.64,0.00019035,2]
[374685379,1753413045387,-460.0,0.00019035,2]
[374685380,1753413045398,-460.0,0.00019035,2]
[374685381,1753413045409,-460.0,0.00019035,2]
[374685382,1753413045419,-460.0,0.00019035,2]
[374685383,1753413045430,-1273.31,0.00019035,2]
[374685384,1753413045440,-495.47,0.00019035,2]
[374685385,1753413045450,-1322.49,0.00019035,2]
[374685386,1753413045460,-460.0,0.00019035,2]
[374685387,1753413045471,-623.94,0.00019035,2]
[374685388,1753413045482,-460.0,0.00019035,2]
[374685389,1753413045493,-460.0,0.00019035,2]
[374685390,1753413045504,-460.0,0.00019035,2]
[374685391,1753413045516,-460.0,0.00019035,2]
[374685392,1753413045526,-460.0,0.00019035,2]
[374685393,1753413045537,-1123.15,0.00019035,2]
[374685394,1753413045547,-460.0,0.00019035,2]
[374685395,1753413045558,-460.0,0.00019035,2]
[374685396,1753413045569,-460.0,0.00019035,2]
[374685397,1753413045580,-460.0,0.00019036,2]
[374685398,1753413045591,-460.0,0.00019036,2]
[374685399,1753413045603,-460.0,0.00019036,2]
[374685400,1753413045613,-460.0,0.00019036,2]
[374685401,1753413045623,-460.0,0.00019036,2]
[374685402,1753413045633,-460.0,0.00019036,2]
[374685403,1753413045644,-411.54866306,0.00019036,2]
[374685404,1753413045656,-460.0,0.00019036,2]
[374685405,1753413045667,-153.46119063,0.00019036,2]
[374685406,1753413045677,-460.0,0.00019036,2]
[374685407,1753413045687,-460.0,0.00019036,2]
[374685408,1753413045698,-460.0,0.00019036,2]
[374685409,1753413045709,-811.88,0.00019036,2]
[374685410,1753413045719,-460.0,0.00019036,2]
[374685411,1753413045729,-485.53,0.00019036,2]
[374685412,1753413045740,-682.55,0.00019036,2]
[374685413,1753413045750,-460.0,0.00019036,2]
[374685414,1753413045760,-460.0,0.00019036,2]
[374685415,1753413045771,-1105.84,0.00019036,2]
[374685416,1753413045782,-460.0,0.00019036,2]
[374685417,1753413045793,-460.0,0.00019036,2]
[374685418,1753413045804,-460.0,0.00019036,2]
[374685419,1753413045815,-1999.76,0.00019036,2]
[374685420,1753413045825,-460.0,0.00019036,2]
[374685421,1753413045836,-460.0,0.00019036,2]
[374685422,1753413045847,-460.0,0.00019036,2]
[374685423,1753413045858,-460.0,0.00019036,2]
[374685424,1753413045869,-775.94,0.00019036,2]
[374685425,1753413045880,-572.18,0.00019036,2]
[374685426,1753413045891,-460.0,0.00019036,2]
[374685427,1753413045902,-460.0,0.00019036,2]
[374685428,1753413045912,-1380.02,0.00019036,2]
[374685429,1753413045923,-508.82,0.00019036,2]
[374685430,1753413045934,-460.0,0.00019036,2]
[374685431,1753413045945,-593.98,0.00019036,2]
[374685432,1753413045955,-1059.98,0.00019036,2]
[374685433,1753413045967,-572.37,0.00019036,2]
[374685434,1753413045977,-499.64,0.00019036,2]
[374685435,1753413045988,-1304.1,0.00019036,2]
[374685436,1753413045999,-460.0,0.00019036,2]
[374685437,1753413046010,-838.96,0.00019036,2]
[374685438,1753413046021,-631.7,0.00019036,2]
[374685439,1753413046031,-1408.64,0.00019036,2]
[374685440,1753413046042,-196.4862054,0.00019036,2]
[374685442,1753413046053,-2590.99,0.00019036,2]
[374685443,1753413046064,-424.72429874,0.00019036,2]
[374685444,1753413046074,-460.0,0.00019036,2]
[374685445,1753413046084,-460.0,0.00019036,2]
[374685448,1753413046277,-460.0,0.00019036,2]
[374685449,1753413046294,-460.0,0.00019036,2]
[374685450,1753413046308,-1680.0,0.00019078,2]
[374685451,1753413046318,-168.0,0.00019109,2]
[374685452,1753413046328,-194.0,0.00019116,2]
[374685453,1753413046338,-206.21809892,0.00019146,2]
[374685454,1753413046347,-1022.0,0.00019146,2]
[374685455,1753413046357,-199.02396544,0.00019146,2]
[374685456,1753413046367,-151.0,0.00019146,2]
[374685458,1753413046376,-901.0,0.00019146,2]
[374685460,1753413046386,-377.54238912,0.00019146,2]
[374685462,1753413046395,-153.73496682,0.00019146,2]
[374685464,1753413046404,-168.0,0.00019158,2]
[374685466,1753413046414,-500.0,0.00019164,2]
[374685468,1753413046424,-168.0,0.00019164,2]
[374685470,1753413046433,-3563.69170354,0.00019176,2]
[374685471,1753413046443,-168.0,0.00019176,2]
[374685473,1753413046452,-151.28954036,0.00019178,2]
[374685475,1753413046462,-151.25207597,0.00019178,2]
[374685476,1753413046471,-427.327691,0.00019178,2]
[374685477,1753413046481,-151.0,0.000192,2]
[374685478,1753413046491,-265.41332566,0.00019281,2]
[374685479,1753413046500,-168.0,0.00019307,2]
[374685480,1753413046511,-460.0,0.00019309,2]
[374685481,1753413046520,-460.0,0.00019309,2]
[374685482,1753413046529,-460.0,0.00019309,2]
[374685483,1753413046539,-460.0,0.00019309,2]
[374685484,1753413046548,-460.0,0.00019309,2]
[374685485,1753413046559,-534.09,0.00019309,2]
[374685486,1753413046570,-3269.13,0.00019309,2]
[374685487,1753413046580,-460.0,0.00019309,2]
[374685488,1753413046593,-2004.64,0.00019309,2]
[374685489,1753413046604,-460.0,0.00019309,2]
[374685490,1753413046614,-460.0,0.00019309,2]
[374685491,1753413046624,-460.0,0.00019309,2]
[374685492,1753413046633,-460.0,0.00019309,2]
[374685493,1753413046643,-1273.31,0.00019309,2]
[374685494,1753413046653,-495.47,0.00019309,2]
[374685495,1753413046665,-1322.49,0.00019309,2]
[374685496,1753413046675,-297.71144224,0.00019309,2]
[374685497,1753413046685,-623.94,0.00019309,2]
[374685498,1753413046697,-460.0,0.00019309,2]
[374685499,1753413046707,-460.0,0.00019309,2]
[374685500,1753413046717,-460.0,0.00019309,2]
[374685501,1753413046728,-460.0,0.00019309,2]
[374685502,1753413046738,-583.98514693,0.00019309,2]
[374685503,1753413046748,-1123.15,0.00019309,2]
[374685504,1753413046757,-460.0,0.00019309,2]
[374685505,1753413046768,-460.0,0.00019309,2]
[374685506,1753413046779,-460.0,0.00019309,2]
[374685507,1753413046790,-460.0,0.0001931,2]
[374685508,1753413046800,-460.0,0.0001931,2]
[374685509,1753413046811,-460.0,0.0001931,2]
[374685510,1753413046822,-460.0,0.0001931,2]
[374685511,1753413046831,-460.0,0.0001931,2]
[374685512,1753413046842,-460.0,0.0001931,2]
[374685513,1753413046852,-460.0,0.0001931,2]
[374685514,1753413046863,-460.0,0.0001931,2]
[374685515,1753413046873,-460.0,0.0001931,2]
[374685516,1753413046884,-811.88,0.0001931,2]
[374685517,1753413046894,-460.0,0.0001931,2]
[374685518,1753413046903,-485.53,0.0001931,2]
[374685519,1753413046914,-682.55,0.0001931,2]
[374685520,1753413046924,-188.42331795,0.0001931,2]
[374685521,1753413046933,-460.0,0.0001931,2]
[374685522,1753413046943,-1105.84,0.0001931,2]
[374685523,1753413046953,-460.0,0.0001931,2]
[374685524,1753413046964,-460.0,0.0001931,2]
[374685525,1753413046974,-460.0,0.0001931,2]
[374685526,1753413046983,-1999.76,0.0001931,2]
[374685527,1753413046993,-460.0,0.0001931,2]
[374685528,1753413047003,-460.0,0.0001931,2]
[374685529,1753413047013,-460.0,0.0001931,2]
[374685530,1753413047023,-460.0,0.0001931,2]
[374685531,1753413047032,-775.94,0.0001931,2]
[374685532,1753413047042,-572.18,0.0001931,2]
[374685533,1753413047054,-460.0,0.0001931,2]
[374685534,1753413047063,-460.0,0.0001931,2]
[374685535,1753413047073,-1380.02,0.0001931,2]
[374685536,1753413047083,-508.82,0.0001931,2]
[374685537,1753413047092,-460.0,0.0001931,2]
[374685538,1753413047102,-593.98,0.0001931,2]
[374685540,1753413047111,-1059.98,0.0001931,2]
[374685542,1753413047123,-572.37,0.0001931,2]
[374685544,1753413047132,-499.64,0.0001931,2]
[374685546,1753413047142,-1304.1,0.0001931,2]
[374685548,1753413047153,-460.0,0.0001931,2]
[374685549,1753413047163,-838.96,0.0001931,2]
[374685551,1753413047173,-631.7,0.0001931,2]
[374685553,1753413047182,-1408.64,0.0001931,2]
[374685555,1753413047191,-2590.99,0.0001931,2]
[374685556,1753413047201,-460.0,0.0001931,2]
[374685557,1753413047210,-460.0,0.0001931,2]
[374685558,1753413047221,-460.0,0.0001931,2]
[374685559,1753413047230,-460.0,0.0001931,2]
[374685560,1753413047240,-4125.13577568,0.00019329,2]
[374685561,1753413047250,-100000.0,0.00019329,2]
[374685562,1753413047260,-501.28889148,0.00019373,2]
[374685563,1753413047269,-501.02068104,0.00019373,2]
[374685564,1753413047279,-526.48555026,0.00019373,2]
[374685565,1753413047289,-151.0,0.00019383,2]
[374685566,1753413047299,-210.0,0.00019397,3]
[374685567,1753413047312,-151.0,0.000194,2]
[374685568,1753413047322,-1092.607,0.00019418,2]
[374685569,1753413047332,-1022.0,0.0001942,2]
[374685570,1753413047346,-282.3052838,0.0001942,2]
[374685571,1753413047356,-901.0,0.0001942,2]
[374685572,1753413047365,-3563.69170354,0.00019452,2]
[374685573,1753413047376,-2000.0,0.00019516,2]
[374685574,1753413047386,-2000.0,0.00019516,2]
[374685575,1753413047396,-168.0,0.0001956,2]
[374685576,1753413047405,-227.0,0.00019566,2]
[374685577,1753413047415,-460.0,0.00019583,2]
[374685578,1753413047425,-460.0,0.00019583,2]
[374685579,1753413047434,-460.0,0.00019583,2]
[374685580,1753413047444,-579.32824637,0.00019583,2]
[374685581,1753413047453,-460.0,0.00019583,2]
[374685582,1753413047462,-534.09,0.00019583,2]
[374685583,1753413047475,-3269.13,0.00019583,2]
[374685584,1753413047485,-460.0,0.00019583,2]
[374685585,1753413047494,-2004.64,0.00019583,2]
[374685586,1753413047504,-460.0,0.00019583,2]
[374685587,1753413047514,-460.0,0.00019583,2]
[374685588,1753413047523,-460.0,0.00019583,2]
[374685589,1753413047533,-460.0,0.00019583,2]
[374685590,1753413047543,-1273.31,0.00019583,2]
[374685591,1753413047553,-495.47,0.00019583,2]
[374685592,1753413047563,-1322.49,0.00019583,2]
[374685593,1753413047572,-623.94,0.00019583,2]
[374685594,1753413047582,-460.0,0.00019583,2]
[374685595,1753413047592,-460.0,0.00019583,2]
[374685596,1753413047602,-460.0,0.00019583,2]
[374685597,1753413047611,-460.0,0.00019583,2]
[374685598,1753413047623,-1123.15,0.00019583,2]
[374685599,1753413047633,-554.62348945,0.00019583,2]
[374685600,1753413047643,-460.0,0.00019583,2]
[374685601,1753413047654,-460.0,0.00019584,2]
[374685602,1753413047664,-151.0,0.00019584,2]
[374685603,1753413047674,-151.547322,0.00019584,2]
[374685604,1753413047685,-460.0,0.00019584,2]
[374685605,1753413047696,-460.0,0.00019584,2]
[374685606,1753413047707,-460.0,0.00019584,2]
[374685607,1753413047717,-460.0,0.00019584,2]
[374685608,1753413047727,-460.0,0.00019584,2]
[374685609,1753413047737,-460.0,0.00019584,2]
[374685610,1753413047748,-811.88,0.00019584,2]
[374685611,1753413047758,-460.0,0.00019584,2]
[374685612,1753413047768,-485.53,0.00019584,2]
[374685613,1753413047777,-682.55,0.00019584,2]
[374685614,1753413047787,-460.0,0.00019584,2]
[374685615,1753413047797,-1105.84,0.00019584,2]
[374685616,1753413047808,-460.0,0.00019584,2]
[374685617,1753413047817,-460.0,0.00019584,2]
[374685618,1753413047827,-242.29618269,0.00019584,2]
[374685619,1753413047837,-1999.76,0.00019584,2]
[374685620,1753413047847,-460.0,0.00019584,2]
[374685621,1753413047856,-460.0,0.00019584,2]
[374685622,1753413047867,-460.0,0.00019584,2]
[374685623,1753413047877,-460.0,0.00019584,2]
[374685624,1753413047887,-775.94,0.00019584,2]
[374685625,1753413047897,-572.18,0.00019584,2]
[374685626,1753413047908,-460.0,0.00019584,2]
[374685627,1753413047917,-460.0,0.00019584,2]
[374685628,1753413047927,-1380.02,0.00019584,2]
[374685629,1753413047936,-508.82,0.00019584,2]
[374685630,1753413047946,-460.0,0.00019584,2]
[374685631,1753413047956,-593.98,0.00019584,2]
[374685632,1753413047965,-1059.98,0.00019584,2]
[374685633,1753413047974,-572.37,0.00019584,2]
[374685634,1753413047983,-499.64,0.00019584,2]
[374685635,1753413047992,-1304.1,0.00019584,2]
[374685636,1753413048002,-460.0,0.00019584,2]
[374685637,1753413048013,-838.96,0.00019584,2]
[374685638,1753413048022,-631.7,0.00019584,2]
[374685639,1753413048032,-1408.64,0.00019584,2]
[374685640,1753413048042,-2590.99,0.00019584,2]
[374685641,1753413048052,-460.0,0.00019584,2]
[374685642,1753413048062,-460.0,0.00019584,2]
[374685643,1753413048071,-460.0,0.00019584,2]
[374685644,1753413048081,-460.0,0.00019584,2]
[374685645,1753413048091,-151.0,0.00019594,2]
[374685646,1753413048101,-168.0,0.00019598,2]
[374685647,1753413048113,-168.0,0.00019612,2]
[374685648,1753413048126,-168.0,0.00019623,2]
[374685649,1753413048135,-168.0,0.00019658,2]
[374685650,1753413048146,-1022.0,0.00019694,2]
[374685651,1753413048158,-901.0,0.00019694,2]
[374685652,1753413048170,-3563.69170354,0.00019728,2]
[374685653,1753413048182,-258.60328844,0.00019784,2]
[374685654,1753413048193,-2157.0,0.00019788,2]
[374685655,1753413048202,-973.577,0.00019788,2]
[374685656,1753413048213,-168.0,0.00019832,2]
[374685657,1753413048223,-365.47651421,0.00019837,2]
[374685658,1753413048235,-429.7456075,0.00019845,2]
[374685659,1753413048245,-429.7456075,0.00019845,2]
[374685660,1753413048256,-429.7456075,0.00019845,2]
[374685661,1753413048266,-429.7456075,0.00019845,2]
[374685662,1753413048276,-436.9003089,0.00019845,2]
[374685663,1753413048287,-859.491215,0.00019845,2]
[374685664,1753413048297,-306.3832578,0.00019854,2]
[374685665,1753413048308,-178.2667198,0.00019854,2]
[374685666,1753413048318,-163.0255326,0.00019854,2]
[374685667,1753413048328,-156.5443258,0.00019854,2]
[374685668,1753413048337,-155.1697344,0.00019854,2]
[374685669,1753413048347,-178.2667198,0.00019854,2]
[374685670,1753413048358,-153.0,0.00019854,2]
[374685671,1753413048368,-159.9507963,0.00019854,2]
[374685672,1753413048379,-587.9355696,0.00019854,2]
[374685673,1753413048390,-159.9507963,0.00019854,2]
[374685674,1753413048400,-577.6552115,0.00019854,2]
[374685675,1753413048411,-178.2667198,0.00019854,2]
[374685676,1753413048422,-153.0,0.00019854,2]
[374685677,1753413048434,-153.0,0.00019854,2]
[374685678,1753413048446,-159.9507963,0.00019854,2]
[374685679,1753413048458,-577.6552115,0.00019854,2]
[374685680,1753413048469,-178.2667198,0.00019854,2]
[374685681,1753413048481,-159.9507963,0.00019854,2]
[374685682,1753413048491,-178.2667198,0.00019854,2]
[374685683,1753413048502,-319.9015926,0.00019854,2]
[374685684,1753413048513,-460.0,0.00019857,2]
[374685685,1753413048523,-460.0,0.00019857,2]
[374685686,1753413048533,-460.0,0.00019857,2]
[374685687,1753413048543,-460.0,0.00019857,2]
[374685688,1753413048553,-534.09,0.00019857,2]
[374685689,1753413048564,-3269.13,0.00019857,2]
[374685690,1753413048574,-460.0,0.00019857,2]
[374685691,1753413048585,-2004.64,0.00019857,2]
[374685692,1753413048595,-460.0,0.00019857,2]
[374685693,1753413048605,-460.0,0.00019857,2]
[374685694,1753413048615,-460.0,0.00019857,2]
[374685695,1753413048625,-460.0,0.00019857,2]
[374685696,1753413048635,-1273.31,0.00019857,2]
[374685697,1753413048645,-495.47,0.00019857,2]
[374685698,1753413048655,-1322.49,0.00019857,2]
[374685699,1753413048666,-623.94,0.00019857,2]
[374685700,1753413048676,-277.56256749,0.00019857,2]
[374685701,1753413048686,-460.0,0.00019857,2]
[374685702,1753413048696,-306.3118736,0.00019857,2]
[374685703,1753413048707,-460.0,0.00019857,2]
[374685704,1753413048717,-1123.15,0.00019857,2]
[374685705,1753413048727,-460.0,0.00019857,2]
[374685706,1753413048736,-460.0,0.00019858,2]
[374685707,1753413048746,-460.0,0.00019858,2]
[374685708,1753413048756,-460.0,0.00019858,2]
[374685709,1753413048766,-460.0,0.00019858,2]
[374685710,1753413048776,-460.0,0.00019858,2]
[374685711,1753413048786,-460.0,0.00019858,2]
[374685712,1753413048796,-460.0,0.00019858,2]
[374685713,1753413048806,-811.88,0.00019858,2]
[374685714,1753413048817,-460.0,0.00019858,2]
[374685715,1753413048827,-485.53,0.00019858,2]
[374685716,1753413048837,-682.55,0.00019858,2]
[374685717,1753413048848,-460.0,0.00019858,2]
[374685718,1753413048859,-1105.84,0.00019858,2]
[374685719,1753413048870,-460.0,0.00019858,2]
[374685720,1753413048880,-460.0,0.00019858,2]
[374685721,1753413048890,-1999.76,0.00019858,2]
[374685722,1753413048900,-460.0,0.00019858,2]
[374685723,1753413048911,-562.73050465,0.00019858,2]
[374685724,1753413048922,-460.0,0.00019858,2]
[374685725,1753413048933,-460.0,0.00019858,2]
[374685726,1753413048943,-775.94,0.00019858,2]
[374685727,1753413048953,-460.0,0.00019858,2]
[374685728,1753413048963,-572.18,0.00019858,2]
[374685729,1753413048973,-460.0,0.00019858,2]
[374685730,1753413048983,-1380.02,0.00019858,2]
[374685731,1753413048994,-508.82,0.00019858,2]
[374685732,1753413049004,-460.0,0.00019858,2]
[374685733,1753413049014,-593.98,0.00019858,2]
[374685734,1753413049024,-1059.98,0.00019858,2]
[374685735,1753413049034,-572.37,0.00019858,2]
[374685736,1753413049044,-499.64,0.00019858,2]
[374685737,1753413049055,-1304.1,0.00019858,2]
[374685738,1753413049065,-460.0,0.00019858,2]
[374685739,1753413049075,-838.96,0.00019858,2]
[374685740,1753413049086,-631.7,0.00019858,2]
[374685741,1753413049096,-1408.64,0.00019858,2]
[374685742,1753413049106,-460.0,0.00019858,2]
[374685743,1753413049119,-2590.99,0.00019858,2]
[374685744,1753413049130,-460.0,0.00019858,2]
[374685745,1753413049140,-460.0,0.00019858,2]
[374685746,1753413049150,-200.129568,0.00019889,2]
[374685747,1753413049161,-1022.0,0.00019968,2]
[374685748,1753413049171,-901.0,0.00019968,2]
[374685749,1753413049181,-173.676,0.0002,2]
[374685750,1753413049191,-3563.69170354,0.00020003,2]
[374685751,1753413049202,-168.0,0.00020037,2]
[374685752,1753413049213,-501.94224945,0.00020054,2]
[374685753,1753413049222,-168.0,0.00020057,2]
[374685754,1753413049231,-361.615171,0.00020058,2]
[374685755,1753413049241,-500.0,0.00020058,2]
[374685756,1753413049251,-2500.0,0.00020064,2]
[374685757,1753413049261,-2500.0,0.00020064,2]
[374685758,1753413049271,-154.094668,0.00020073,2]
[374685759,1753413049282,-1544.37202294,0.00020082,2]
[374685760,1753413049292,-223.0315306,0.00020117,2]
[374685761,1753413049302,-460.0,0.00020131,2]
[374685762,1753413049314,-460.0,0.00020131,2]
[374685763,1753413049324,-460.0,0.00020131,2]
[374685764,1753413049334,-460.0,0.00020131,2]
[374685765,1753413049345,-534.09,0.00020131,2]
[374685766,1753413049354,-3269.13,0.00020131,2]
[374685767,1753413049364,-460.0,0.00020131,2]
[374685768,1753413049374,-2004.64,0.00020131,2]
[374685769,1753413049384,-460.0,0.00020131,2]
[374685770,1753413049393,-460.0,0.00020131,2]
[374685771,1753413049403,-460.0,0.00020131,2]
[374685772,1753413049413,-460.0,0.00020131,2]
[374685773,1753413049422,-1273.31,0.00020131,2]
[374685774,1753413049432,-495.47,0.00020131,2]
[374685775,1753413049442,-1322.49,0.00020131,2]
[374685776,1753413049451,-623.94,0.00020131,2]
[374685777,1753413049462,-460.0,0.00020131,2]
[374685778,1753413049472,-460.0,0.00020131,2]
[374685779,1753413049482,-1123.15,0.00020131,2]
[374685780,1753413049493,-460.0,0.00020131,2]
[374685781,1753413049502,-460.0,0.00020132,2]
[374685782,1753413049513,-460.0,0.00020132,2]
[374685783,1753413049523,-460.0,0.00020132,2]
[374685784,1753413049532,-460.0,0.00020132,2]
[374685785,1753413049542,-460.0,0.00020132,2]
[374685786,1753413049552,-460.0,0.00020132,2]
[374685787,1753413049563,-460.0,0.00020132,2]
[374685788,1753413049573,-811.88,0.00020132,2]
[374685789,1753413049686,-460.0,0.00020132,2]
[374685790,1753413049718,-485.53,0.00020132,2]
[374685791,1753413049729,-682.55,0.00020132,2]
[374685792,1753413049739,-460.0,0.00020132,2]
[374685793,1753413049749,-1105.84,0.00020132,2]
[374685794,1753413049759,-460.0,0.00020132,2]
[374685795,1753413049770,-460.0,0.00020132,2]
[374685796,1753413049780,-1999.76,0.00020132,2]
[374685797,1753413049790,-460.0,0.00020132,2]
[374685798,1753413049801,-442.68829304,0.00020132,2]
[374685799,1753413049813,-460.0,0.00020132,2]
[374685800,1753413049823,-775.94,0.00020132,2]
[374685801,1753413049834,-460.0,0.00020132,2]
[374685802,1753413049844,-572.18,0.00020132,2]
[374685803,1753413049854,-460.0,0.00020132,2]
[374685804,1753413049865,-1380.02,0.00020132,2]
[374685805,1753413049875,-508.82,0.00020132,2]
[374685806,1753413049885,-460.0,0.00020132,2]
[374685807,1753413049894,-593.98,0.00020132,2]
[374685808,1753413049904,-1059.98,0.00020132,2]
[374685809,1753413049914,-572.37,0.00020132,2]
[374685810,1753413049924,-499.64,0.00020132,2]
[374685811,1753413049934,-1304.1,0.00020132,2]
[374685812,1753413049946,-460.0,0.00020132,2]
[374685813,1753413049956,-838.96,0.00020132,2]
[374685814,1753413049966,-631.7,0.00020132,2]
[374685815,1753413049976,-1408.64,0.00020132,2]
[374685816,1753413049986,-460.0,0.00020132,2]